fUSD/lending_fUSD_20240602
["ID","MTS","AMOUNT","RATE_DAILY","PERIOD"]
[328418214,1717371064105,-500.0,0.00031406,4]
[328418215,1717371064115,-545.78248492,0.00031406,4]
[328418216,1717371064124,-500.0,0.00031406,4]
[328418217,1717371064133,-500.0,0.00031406,4]
[328418218,1717371064144,-151.0,0.00031406,7]
[328418219,1717371064154,-369.754307,0.00031406,7]
[328418220,1717371064163,-369.754307,0.00031406,7]
[328418221,1717371064173,-151.0,0.00031406,7]
[328418222,1717371064183,-272.8231956,0.00031406,4]
[328418223,1717371064192,-518.18124326,0.00031406,4]
[328418224,1717371064201,-500.0,0.00031406,4]
[328418225,1717371064211,-530.16692885,0.00031406,4]
[328418226,1717371064220,-512.05171332,0.00031406,4]
[328418227,1717371064229,-500.0,0.00031406,4]
[328418228,1717371064239,-500.0,0.00031406,4]
[328418229,1717371064248,-432.9642768,0.00031406,4]
[328418230,1717371064257,-500.0,0.00031406,4]
[328418231,1717371064266,-500.0,0.00031406,4]
[328418232,1717371064275,-529.10121968,0.00031406,4]
[328418233,1717371064285,-500.0,0.00031406,4]
[328418234,1717371064294,-500.0,0.00031406,4]
[328418235,1717371064303,-517.6007363,0.00031406,4]
[328418236,1717371064313,-506.05299894,0.00031406,4]
[328418237,1717371064322,-531.32275077,0.00031406,4]
[328418238,1717371064333,-151.0,0.00031406,7]
[328418239,1717371064344,-500.0,0.00031406,4]
[328418240,1717371064353,-500.0,0.00031406,4]
[328418241,1717371064363,-500.0,0.00031406,4]
[328418242,1717371064372,-533.779517,0.00031406,4]
[328418243,1717371064382,-500.0,0.00031406,4]
[328418244,1717371064391,-500.0,0.00031406,4]
[328418245,1717371064402,-500.0,0.00031406,4]
[328418246,1717371064411,-500.0,0.00031406,4]
[328418247,1717371064420,-500.0,0.00031406,4]
[328418248,1717371064430,-500.0,0.00031406,4]
[328418249,1717371064439,-500.0,0.00031406,4]
[328418250,1717371064448,-500.0,0.00031406,4]
[328418251,1717371064458,-500.0,0.00031406,4]
[328418252,1717371064563,-500.0,0.00031406,4]
[328418253,1717371064583,-500.0,0.00031406,4]
[328418254,1717371064596,-1044.317613,0.00031406,7]
[328418255,1717371064605,-500.0,0.00031406,4]
[328418256,1717371064615,-509.32996521,0.00031406,4]
[328418257,1717371064624,-1044.317613,0.00031406,7]
[328418258,1717371064635,-526.14910356,0.00031406,4]
[328418259,1717371064645,-500.0,0.00031406,4]
[328418260,1717371064655,-530.04911766,0.00031406,4]
[328418261,1717371064664,-150.42853672,0.00031406,4]
[328418262,1717371064676,-500.0,0.00031406,4]
[328418263,1717371064686,-500.0,0.00031406,4]
[328418264,1717371064695,-500.0,0.00031406,4]
[328418265,1717371064705,-500.0,0.00031406,4]
[328418266,1717371064714,-500.0,0.00031406,4]
[328418267,1717371064725,-500.0,0.00031406,4]
[328418268,1717371064734,-500.0,0.00031406,4]
[328418269,1717371064743,-389.242611,0.00031406,7]
[328418270,1717371064752,-500.0,0.00031406,4]
[328418271,1717371064763,-500.0,0.00031406,4]
[328418272,1717371064772,-389.242611,0.00031406,7]
[328418273,1717371064781,-500.0,0.00031406,4]
[328418274,1717371064791,-500.0,0.00031406,4]
[328418275,1717371064800,-500.0,0.00031406,4]
[328418276,1717371064809,-500.0,0.00031406,4]
[328418277,1717371064819,-500.0,0.00031406,4]
[328418278,1717371064828,-500.0,0.00031406,4]
[328418279,1717371064837,-500.0,0.00031406,4]
[328418280,1717371064847,-8095.33,0.00031406,4]
[328418281,1717371064856,-500.0,0.00031406,4]
[328418282,1717371064865,-413.159818,0.00031406,7]
[328418283,1717371064875,-500.0,0.00031406,4]
[328418284,1717371064884,-500.0,0.00031406,4]
[328418285,1717371064894,-413.159818,0.00031406,7]
[328418286,1717371064904,-500.0,0.00031406,4]
[328418287,1717371064913,-500.0,0.00031406,4]
[328418288,1717371064922,-500.0,0.00031406,4]
[328418289,1717371064931,-1817.32,0.00031406,4]
[328418290,1717371064941,-354.9636699,0.00031406,4]
[328418291,1717371064950,-474.39492924,0.00031406,4]
[328418292,1717371064958,-500.0,0.00031406,4]
[328418293,1717371064968,-500.0,0.00031406,4]
[328418294,1717371064978,-1662.32,0.00031406,4]
[328418295,1717371064988,-2228.05,0.00031406,4]
[328418296,1717371064998,-500.0,0.00031406,4]
[328418297,1717371065007,-500.0,0.00031406,4]
[328418298,1717371065017,-525.20995475,0.00031406,4]
[328418299,1717371065026,-500.0,0.00031406,4]
[328418300,1717371065035,-500.0,0.00031406,4]
[328418301,1717371065044,-500.0,0.00031406,4]
[328418302,1717371065054,-500.0,0.00031406,4]
[328418303,1717371065064,-500.0,0.00031406,4]
[328418304,1717371065075,-500.0,0.00031406,4]
[328418305,1717371065084,-513.89825549,0.00031406,4]
[328418306,1717371065095,-555.54,0.00031406,4]
[328418307,1717371065105,-516.04571091,0.00031406,4]
[328418308,1717371065114,-500.0,0.00031406,4]
[328418309,1717371065123,-2477.72,0.00031406,4]
[328418310,1717371065132,-500.0,0.00031406,4]
[328418311,1717371065144,-500.0,0.00031406,4]
[328418312,1717371065153,-500.0,0.00031406,4]
[328418313,1717371065163,-151.0,0.00031406,7]
[328418314,1717371065173,-500.0,0.00031406,4]
[328418315,1717371065184,-205.41992,0.00031406,7]
[328418316,1717371065194,-10414.42,0.00031406,4]
[328418317,1717371065204,-1251.87,0.00031406,4]
[328418318,1717371065213,-500.0,0.00031406,4]
[328418319,1717371065223,-500.0,0.00031406,4]
[328418320,1717371065232,-307.794907,0.00031406,7]
[328418321,1717371065241,-500.0,0.00031406,4]
[328418322,1717371065250,-500.0,0.00031406,4]
[328418323,1717371065260,-533.98112718,0.00031406,4]
[328418324,1717371065269,-307.794907,0.00031406,7]
[328418325,1717371065279,-500.0,0.00031406,4]
[328418326,1717371065288,-1307.86,0.00031406,4]
[328418327,1717371065298,-505.0,0.00031406,4]
[328418328,1717371065308,-516.92000386,0.00031406,4]
[328418329,1717371065317,-500.0,0.00031406,4]
[328418330,1717371065326,-653.28,0.00031406,4]
[328418331,1717371065335,-500.0,0.00031406,4]
[328418332,1717371065344,-221.380324,0.00031406,7]
[328418333,1717371065354,-500.0,0.00031406,4]
[328418334,1717371065363,-500.0,0.00031406,4]
[328418335,1717371065373,-500.0,0.00031406,4]
[328418336,1717371065382,-221.380324,0.00031406,7]
[328418337,1717371065392,-500.0,0.00031406,4]
[328418338,1717371065402,-500.0,0.00031406,4]
[328418339,1717371065411,-512.91959296,0.00031406,4]
[328418340,1717371065420,-1861.34,0.00031406,4]
[328418341,1717371065429,-500.0,0.00031406,4]
[328418342,1717371065439,-500.0,0.00031406,4]
[328418343,1717371065448,-500.0,0.00031406,4]
[328418344,1717371065457,-500.0,0.00031406,4]
[328418345,1717371065466,-152.531254,0.00031406,7]
[328418346,1717371065475,-500.0,0.00031406,4]
[328418347,1717371065485,-500.0,0.00031406,4]
[328418348,1717371065495,-152.531254,0.00031406,7]
[328418349,1717371065504,-3510.65,0.00031406,4]
[328418350,1717371065513,-508.69262456,0.00031406,4]
[328418351,1717371065522,-375.5122836,0.00031406,4]
[328418352,1717371065531,-500.0,0.00031406,4]
[328418353,1717371065540,-500.0,0.00031406,4]
[328418354,1717371065549,-500.0,0.00031406,4]
[328418355,1717371065559,-513.60449885,0.00031406,4]
[328418356,1717371065568,-532.13032642,0.00031406,4]
[328418357,1717371065578,-500.0,0.00031406,4]
[328418358,1717371065589,-500.0,0.00031406,4]
[328418359,1717371065601,-1153.56,0.00031406,4]
[328418360,1717371065610,-500.0,0.00031406,4]
[328418361,1717371065620,-237.720751,0.00031406,7]
[328418362,1717371065630,-1174.470906,0.00031406,7]
[328418363,1717371065639,-500.0,0.00031406,4]
[328418364,1717371065650,-606.11,0.00031406,4]
[328418365,1717371065659,-500.0,0.00031406,4]
[328418366,1717371065670,-500.0,0.00031406,4]
[328418367,1717371065679,-1174.470909,0.00031406,7]
[328418368,1717371065688,-500.0,0.00031406,4]
[328418369,1717371065697,-743.26,0.00031406,4]
[328418370,1717371065707,-500.0,0.00031406,4]
[328418371,1717371065716,-500.0,0.00031406,4]
[328418372,1717371065725,-500.0,0.00031406,4]
[328418373,1717371065734,-500.0,0.00031406,4]
[328418374,1717371065744,-870.16,0.00031406,4]
[328418375,1717371065753,-829.62,0.00031406,4]
[328418376,1717371065763,-500.0,0.00031406,4]
[328418377,1717371065772,-539.65751451,0.00031406,4]
[328418378,1717371065782,-500.0,0.00031406,4]
[328418379,1717371065791,-1219.6,0.00031406,4]
[328418380,1717371065800,-500.0,0.00031406,4]
[328418381,1717371065811,-500.0,0.00031406,4]
[328418382,1717371065820,-500.0,0.00031406,4]
[328418383,1717371065829,-500.0,0.00031406,4]
[328418384,1717371065839,-500.0,0.00031406,4]
[328418385,1717371065848,-500.0,0.00031406,4]
[328418386,1717371065859,-500.0,0.00031406,4]
[328418387,1717371065869,-500.0,0.00031406,4]
[328418388,1717371065880,-500.0,0.00031406,4]
[328418389,1717371065889,-500.0,0.00031406,4]
[328418390,1717371065900,-500.0,0.00031406,4]
[328418391,1717371065910,-500.0,0.00031406,4]
[328418392,1717371065919,-336.737914,0.00031406,7]
[328418393,1717371065928,-500.0,0.00031406,4]
[328418394,1717371065938,-500.0,0.00031406,4]
[328418395,1717371065948,-500.0,0.00031406,4]
[328418396,1717371065958,-151.0,0.00031406,7]
[328418397,1717371065967,-336.73792,0.00031406,7]
[328418398,1717371065976,-500.0,0.00031406,4]
[328418399,1717371065985,-500.0,0.00031406,4]
[328418400,1717371065994,-513.99,0.00031406,4]
[328418401,1717371066003,-500.0,0.00031406,4]
[328418402,1717371066012,-500.0,0.00031406,4]
[328418403,1717371066022,-500.0,0.00031406,4]
[328418404,1717371066033,-500.0,0.00031406,4]
[328418405,1717371066042,-500.0,0.00031406,4]
[328418406,1717371066052,-500.0,0.00031406,4]
[328418407,1717371066061,-588.98,0.00031406,4]
[328418408,1717371066070,-500.0,0.00031406,4]
[328418409,1717371066079,-500.0,0.00031406,4]
[328418410,1717371066089,-3753.36893321,0.00031425,3]
[328418411,1717371066099,-150.0,0.00031433,2]
[328418412,1717371066109,-158.40587604,0.0003145,7]
[328418413,1717371066214,-150.0,0.00031461,7]
[328418414,1717371066232,-150.0,0.0003147,7]
[328418415,1717371066241,-1193.61,0.00031477,4]
[328418416,1717371066251,-151.0,0.00031478,7]
[328418417,1717371066260,-334.800936,0.00031478,7]
[328418418,1717371066271,-334.800936,0.00031478,7]
[328418419,1717371066279,-223.352464,0.00031478,7]
[328418420,1717371066289,-223.352464,0.00031478,7]
[328418421,1717371066298,-282.330118,0.00031478,7]
[328418422,1717371066308,-507.875795,0.00031478,7]
[328418423,1717371066317,-507.875795,0.00031478,7]
[328418424,1717371066326,-151.0,0.00031478,7]
[328418425,1717371066335,-501.5691168,0.00031478,2]
[328418426,1717371066344,-1044.317613,0.00031478,7]
[328418427,1717371066353,-1044.317613,0.00031478,7]
[328418428,1717371066363,-389.242611,0.00031478,7]
[328418429,1717371066372,-389.242611,0.00031478,7]
[328418430,1717371066381,-69598.8811527,0.00031478,2]
[328418431,1717371066390,-413.159818,0.00031478,7]
[328418432,1717371066400,-413.159818,0.00031478,7]
[328418433,1717371066409,-151.0,0.00031478,7]
[328418434,1717371066418,-7894.419917,0.00031478,2]
[328418435,1717371066427,-307.794907,0.00031478,7]
[328418436,1717371066437,-307.794907,0.00031478,7]
[328418437,1717371066446,-221.380324,0.00031478,7]
[328418438,1717371066456,-221.380324,0.00031478,7]
[328418439,1717371066464,-463.3257314,0.00031478,2]
[328418440,1717371066474,-152.531254,0.00031478,7]
[328418441,1717371066484,-152.531254,0.00031478,7]
[328418442,1717371066493,-790.3197933,0.00031478,2]
[328418443,1717371066503,-12095.3429282,0.00031478,2]
[328418444,1717371066512,-4475.2037671,0.00031478,2]
[328418445,1717371066522,-898.69641381,0.00031478,2]
[328418446,1717371066531,-5400.0,0.0003148,28]
[328418447,1717371066541,-5400.0,0.0003148,30]
[328418448,1717371066551,-188.32378,0.0003148,7]
[328418449,1717371066560,-188.32378,0.0003148,7]
[328418450,1717371066569,-214.0,0.0003149,2]
[328418451,1717371066578,-214.0,0.0003149,2]
[328418452,1717371066588,-214.0,0.0003149,2]
[328418453,1717371066600,-214.0,0.0003149,2]
[328418454,1717371066613,-214.0,0.0003149,2]
[328418455,1717371066622,-157.02517713,0.00031491,4]
[328418456,1717371066632,-158.77642645,0.00031491,4]
[328418457,1717371066643,-831.30279517,0.00031491,4]
[328418458,1717371066652,-500.0,0.00031491,2]
[328418459,1717371066662,-510.08671938,0.00031491,4]
[328418460,1717371066671,-21858.39340886,0.00031492,2]
[328418461,1717371066683,-346.59123551,0.00031492,10]
[328418462,1717371066692,-151.0,0.00031492,7]
[328418463,1717371066701,-369.754307,0.00031492,7]
[328418464,1717371066711,-369.754307,0.00031492,7]
[328418465,1717371066720,-151.0,0.00031492,7]
[328418466,1717371066730,-18443.38294626,0.00031493,11]
[328418467,1717371066740,-500.0,0.00031494,2]
[328418468,1717371066750,-1193.61,0.00031494,4]
[328418469,1717371066759,-1193.61,0.00031494,4]
[328418470,1717371066769,-250905.33399006,0.00031495,11]
[328418471,1717371066778,-209.1055224,0.00031495,4]
[328418472,1717371066788,-297867.48221686,0.00031495,4]
[328418473,1717371066797,-1383.46980156,0.00031495,4]
[328418474,1717371066807,-157.20334897,0.00031495,4]
[328418475,1717371066816,-240.313274,0.00031495,7]
[328418476,1717371066825,-188.32378,0.00031495,7]
[328418477,1717371066835,-188.32378,0.00031495,7]
[328418478,1717371066845,-334.800936,0.00031495,7]
[328418479,1717371066854,-334.800936,0.00031495,7]
[328418480,1717371066864,-223.352464,0.00031495,7]
[328418481,1717371066873,-223.352464,0.00031495,7]
[328418482,1717371066883,-507.875795,0.00031495,7]
[328418483,1717371066892,-507.875795,0.00031495,7]
[328418484,1717371066903,-369.754307,0.00031495,7]
[328418485,1717371066912,-369.754307,0.00031495,7]
[328418486,1717371066921,-151.0,0.00031495,7]
[328418487,1717371066930,-151.0,0.00031495,7]
[328418488,1717371066940,-1044.317613,0.00031495,7]
[328418489,1717371066949,-1044.317613,0.00031495,7]
[328418490,1717371066959,-389.242611,0.00031495,7]
[328418491,1717371066968,-389.242613,0.00031495,7]
[328418492,1717371066977,-413.159818,0.00031495,7]
[328418493,1717371066987,-413.159809,0.00031495,7]
[328418494,1717371066997,-151.0,0.00031495,7]
[328418495,1717371067006,-307.794907,0.00031495,7]
[328418496,1717371067016,-307.794909,0.00031495,7]
[328418497,1717371067025,-221.380324,0.00031495,7]
[328418498,1717371067035,-221.38033,0.00031495,7]
[328418499,1717371067045,-152.531254,0.00031495,7]
[328418500,1717371067054,-152.531255,0.00031495,7]
[328418501,1717371067064,-237.7692352,0.00031496,4]
[328418502,1717371067074,-156.09652196,0.00031496,4]
[328418503,1717371067083,-155.0,0.00031496,4]
[328418504,1717371067092,-387.38084333,0.00031496,4]
[328418505,1717371067101,-175.55591044,0.00031496,4]
[328418506,1717371067110,-221.48704095,0.00031496,4]
[328418507,1717371067120,-411.07546451,0.00031496,2]
[328418508,1717371067129,-13581.55979793,0.00031496,4]
[328418509,1717371067139,-473.22827161,0.00031496,4]
[328418510,1717371067148,-223.93744377,0.00031496,4]
[328418511,1717371067158,-433.45227319,0.00031496,4]
[328418512,1717371067167,-784.86411314,0.00031496,4]
[328418513,1717371067177,-204.45805828,0.00031496,4]
[328418514,1717371067186,-155.0,0.00031496,4]
[328418515,1717371067196,-155.36625973,0.00031496,4]
[328418516,1717371067205,-1486.22934269,0.00031496,4]
[328418517,1717371067215,-312.43037364,0.00031496,4]
[328418518,1717371067224,-155.20563374,0.00031496,4]
[328418519,1717371067233,-162.44741274,0.00031496,4]
[328418520,1717371067242,-354.22479058,0.00031496,4]
[328418521,1717371067252,-1274.3184443,0.00031496,4]
[328418522,1717371067261,-167.17887737,0.00031496,7]
[328418523,1717371067270,-4021.482568,0.00031497,2]
[328418524,1717371067279,-6783.31598666,0.00031497,4]
[328418525,1717371067288,-534.82455589,0.00031497,4]
[328418526,1717371067297,-500.0,0.00031497,4]
[328418527,1717371067307,-152.15130497,0.00031497,7]
[328418528,1717371067316,-4498.17785942,0.00031498,2]
[328418529,1717371067325,-56974.72667682,0.00031498,2]
[328418530,1717371067335,-150.0,0.00031499,7]
[328418531,1717371067345,-500.0,0.00031499,2]
[328418532,1717371067354,-451.90553618,0.00031499,2]
[328418533,1717371067363,-500.0,0.00031499,4]
[328418534,1717371067373,-500.0,0.00031499,4]
[328418535,1717371067382,-500.0,0.00031499,4]
[328418536,1717371067392,-500.0,0.00031499,4]
[328418537,1717371067402,-500.0,0.00031499,4]
[328418538,1717371067411,-500.0,0.00031499,4]
[328418539,1717371067420,-500.0,0.00031499,4]
[328418540,1717371067429,-500.0,0.00031499,4]
[328418541,1717371067439,-500.0,0.00031499,4]
[328418542,1717371067447,-500.0,0.00031499,4]
[328418543,1717371067456,-183.5982915,0.00031499,4]
[328418544,1717371067466,-150.0,0.00031499,2]
[328418545,1717371067475,-796.98,0.00031499,4]
[328418546,1717371067484,-796.98,0.00031499,4]
[328418547,1717371067493,-796.98,0.00031499,4]
[328418548,1717371067503,-796.98,0.00031499,4]
[328418549,1717371067512,-796.98,0.00031499,4]
[328418550,1717371067521,-796.98,0.00031499,4]
[328418551,1717371067530,-796.98,0.00031499,4]
[328418552,1717371067539,-796.98,0.00031499,4]
[328418553,1717371067549,-796.98,0.00031499,4]
[328418554,1717371067558,-796.98,0.00031499,4]
[328418555,1717371067568,-796.98,0.00031499,4]
[328418556,1717371067577,-796.98,0.00031499,4]
[328418557,1717371067586,-796.98,0.00031499,4]
[328418558,1717371067596,-796.98,0.00031499,4]
[328418559,1717371067605,-796.98,0.00031499,4]
[328418560,1717371067615,-796.98,0.00031499,4]
[328418561,1717371067628,-796.98,0.00031499,4]
[328418562,1717371067638,-796.98,0.00031499,4]
[328418563,1717371067648,-796.98,0.00031499,4]
[328418564,1717371067657,-796.98,0.00031499,4]
[328418565,1717371067666,-796.98,0.00031499,4]
[328418566,1717371067676,-796.98,0.00031499,4]
[328418567,1717371067686,-797.08840548,0.00031499,4]
[328418568,1717371067695,-334.800936,0.00031499,7]
[328418569,1717371067704,-334.800936,0.00031499,7]
[328418570,1717371067714,-500.0,0.00031499,2]
[328418571,1717371067723,-500.0,0.00031499,2]
[328418572,1717371067732,-500.0,0.00031499,2]
[328418573,1717371067740,-500.0,0.00031499,2]
[328418574,1717371067749,-500.0,0.00031499,2]
[328418575,1717371067758,-500.0,0.00031499,2]
[328418576,1717371067767,-500.0,0.00031499,2]
[328418577,1717371067776,-472.74626627,0.00031499,2]
[328418578,1717371067786,-223.352464,0.00031499,7]
[328418579,1717371067795,-223.352464,0.00031499,7]
[328418580,1717371067804,-507.875795,0.00031499,7]
[328418581,1717371067814,-507.875795,0.00031499,7]
[328418582,1717371067823,-369.754307,0.00031499,7]
[328418583,1717371067832,-369.754309,0.00031499,7]
[328418584,1717371067842,-151.0,0.00031499,7]
[328418585,1717371067853,-500.0,0.00031499,4]
[328418586,1717371067863,-500.0,0.00031499,4]
[328418587,1717371067872,-500.0,0.00031499,4]
[328418588,1717371067881,-500.0,0.00031499,4]
[328418589,1717371067890,-500.0,0.00031499,4]
[328418590,1717371067900,-500.0,0.00031499,4]
[328418591,1717371067910,-500.0,0.00031499,4]
[328418592,1717371067919,-500.0,0.00031499,4]
[328418593,1717371067928,-500.0,0.00031499,4]
[328418594,1717371067937,-479.58425834,0.00031499,4]
[328418595,1717371067947,-151.0,0.00031499,7]
[328418596,1717371067956,-1044.317613,0.00031499,7]
[328418597,1717371067966,-1044.317611,0.00031499,7]
[328418598,1717371067975,-1000.0,0.00031499,14]
[328418599,1717371067985,-1000.0,0.00031499,14]
[328418600,1717371067994,-1000.0,0.00031499,14]
[328418601,1717371068003,-1000.0,0.00031499,14]
[328418602,1717371068012,-483.63517891,0.00031499,14]
[328418603,1717371068022,-1193.61,0.00031499,4]
[328418604,1717371068031,-1193.61,0.00031499,4]
[328418605,1717371068042,-1193.61,0.00031499,4]
[328418606,1717371068051,-1193.61,0.00031499,4]
[328418607,1717371068061,-1193.61,0.00031499,4]
[328418608,1717371068071,-1193.61,0.00031499,4]
[328418609,1717371068081,-1193.61,0.00031499,4]
[328418610,1717371068090,-1193.61,0.00031499,4]
[328418611,1717371068100,-1193.61,0.00031499,4]
[328418612,1717371068109,-1193.61,0.00031499,4]
[328418613,1717371068118,-1193.61,0.00031499,4]
[328418614,1717371068128,-1193.61,0.00031499,4]
[328418615,1717371068137,-1193.61,0.00031499,4]
[328418616,1717371068147,-1193.61242895,0.00031499,4]
[328418617,1717371068157,-235.5792311,0.000315,2]
[328418618,1717371068167,-235.56295592,0.000315,2]
[328418619,1717371068176,-157.04197061,0.000315,2]
[328418620,1717371068185,-8428.69593598,0.000315,5]
[328418621,1717371068194,-7654551.19,0.000315,5]
[328418622,1717371068204,-1499.09,0.000315,2]
[328418623,1717371068213,-1268.29,0.000315,2]
[328418624,1717371068222,-500.0,0.000315,2]
[328418625,1717371068231,-188.32378,0.000315,7]
[328418626,1717371068240,-188.32378,0.000315,7]
[328418627,1717371068250,-188.32378,0.000315,7]
[328418628,1717371068259,-188.32378,0.000315,7]
[328418629,1717371068268,-334.800936,0.000315,7]
[328418630,1717371068277,-334.800942,0.000315,7]
[328418631,1717371068287,-223.352464,0.000315,7]
[328418632,1717371068296,-223.352463,0.000315,7]
[328418633,1717371068306,-507.875795,0.000315,7]
[328418634,1717371068315,-507.875788,0.000315,7]
[328418635,1717371068445,-130483.92790281,0.000315,2]
[328418636,1717371068455,-4251.21137621,0.000315,2]
[328418637,1717371068464,-1586.98824674,0.000315,2]
[328418638,1717371068474,-167.17887737,0.00031502,7]
[328418639,1717371068483,-167.0,0.0003152,2]
[328418640,1717371068493,-150.0,0.00031524,7]
[328418641,1717371068503,-150.0,0.00031542,7]
[328418642,1717371068512,-155.0,0.00031556,2]
[328418643,1717371068522,-5832.89,0.00031556,2]
[328418644,1717371068531,-1615.10694581,0.00031556,4]
[328418645,1717371068541,-453.46403564,0.00031556,7]
[328418646,1717371068551,-2000.0,0.00031556,2]
[328418647,1717371068560,-200.0,0.00031556,2]
[328418648,1717371068570,-200.0,0.00031556,2]
[328418649,1717371068579,-500.0,0.00031556,2]
[328418650,1717371068589,-500.0,0.00031556,2]
[328418651,1717371068598,-200.0,0.00031556,2]
[328418652,1717371068613,-200.0,0.00031556,2]
[328418653,1717371068622,-155.96669712,0.00031574,7]
[328418654,1717371068632,-150.0,0.00031583,7]
[328418655,1717371068641,-152.15130497,0.00031583,7]
[328418656,1717371068652,-19633.96026482,0.00031584,15]
[328418657,1717371068660,-5881.30390149,0.00031584,15]
[328418658,1717371068670,-150.0,0.00031586,7]
[328418659,1717371068680,-628.43,0.0003159,4]
[328418660,1717371068689,-500.0,0.0003159,4]
[328418661,1717371068698,-500.0,0.0003159,4]
[328418662,1717371068707,-188.32378,0.0003159,7]
[328418663,1717371068717,-500.0,0.0003159,4]
[328418664,1717371068726,-188.323783,0.0003159,7]
[328418665,1717371068735,-500.0,0.0003159,4]
[328418666,1717371068744,-617.47,0.0003159,4]
[328418667,1717371068754,-500.0,0.0003159,4]
[328418668,1717371068763,-500.0,0.0003159,4]
[328418669,1717371068772,-705.6,0.0003159,4]
[328418670,1717371068781,-517.48,0.0003159,4]
[328418671,1717371068790,-500.0,0.0003159,4]
[328418672,1717371068800,-607.53,0.0003159,4]
[328418673,1717371068809,-500.0,0.0003159,4]
[328418674,1717371068819,-1255.03,0.0003159,4]
[328418675,1717371068828,-500.0,0.0003159,4]
[328418676,1717371068837,-574.85,0.0003159,4]
[328418677,1717371068847,-500.0,0.0003159,4]
[328418678,1717371068856,-524.40609027,0.0003159,4]
[328418679,1717371068865,-500.0,0.0003159,4]
[328418680,1717371068875,-500.0,0.0003159,4]
[328418681,1717371068884,-500.0,0.0003159,4]
[328418682,1717371068893,-500.0,0.0003159,4]
[328418683,1717371068902,-500.0,0.0003159,4]
[328418684,1717371068911,-500.0,0.0003159,4]
[328418685,1717371068925,-570.33,0.0003159,4]
[328418686,1717371068935,-500.0,0.0003159,4]
[328418687,1717371068945,-551.69,0.0003159,4]
[328418688,1717371068955,-661.77,0.0003159,4]
[328418689,1717371068966,-500.0,0.0003159,4]
[328418690,1717371068976,-936.31,0.0003159,4]
[328418691,1717371068986,-522.4,0.0003159,4]
[328418692,1717371068996,-500.0,0.0003159,4]
[328418693,1717371069006,-500.0,0.0003159,4]
[328418694,1717371069015,-500.0,0.0003159,4]
[328418695,1717371069025,-500.0,0.0003159,4]
[328418696,1717371069035,-1102.97,0.0003159,4]
[328418697,1717371069044,-831.18,0.0003159,4]
[328418698,1717371069054,-638.36,0.0003159,4]
[328418699,1717371069064,-820.06,0.0003159,4]
[328418700,1717371069074,-520.32,0.0003159,4]
[328418701,1717371069084,-1014.06,0.0003159,4]
[328418702,1717371069094,-500.0,0.0003159,4]
[328418703,1717371069104,-500.0,0.0003159,4]
[328418704,1717371069113,-567.86,0.0003159,4]
[328418705,1717371069123,-500.0,0.0003159,4]
[328418706,1717371069133,-592.44,0.0003159,4]
[328418707,1717371069143,-500.0,0.0003159,4]
[328418708,1717371069154,-500.0,0.0003159,4]
[328418709,1717371069163,-516.74,0.0003159,4]
[328418710,1717371069173,-500.0,0.0003159,4]
[328418711,1717371069182,-720.42,0.0003159,4]
[328418712,1717371069192,-500.0,0.0003159,4]
[328418713,1717371069201,-675.63,0.0003159,4]